fUSD/lending_fUSD_20260315
["ID","MTS","AMOUNT","RATE_DAILY","PERIOD"]
[408385035,1773538126269,-293.15907997,0.00013226,2]
[408385036,1773538126295,-500.0,0.00013226,2]
[408385037,1773538126321,-500.0,0.00013226,2]
[408385038,1773538126349,-313.92387934,0.00013226,2]
[408385039,1773538126377,-183.70646454,0.00013226,2]
[408385040,1773538126406,-500.0,0.00013226,2]
[408385041,1773538126432,-500.0,0.00013226,2]
[408385042,1773538126459,-500.0,0.00013226,2]
[408385043,1773538126486,-500.0,0.00013226,2]
[408385044,1773538126513,-500.0,0.00013226,2]
[408385045,1773538126539,-136.97665542,0.00013226,2]
[408385046,1773538126888,-372.93124818,0.00013226,2]
[408385047,1773538126918,-500.0,0.00013226,2]
[408385048,1773538126944,-500.0,0.00013226,2]
[408385049,1773538126969,-253.86926902,0.00013226,2]
[408385050,1773538126997,-500.0,0.00013226,2]
[408385051,1773538127023,-163.11606836,0.00013226,2]
[408385052,1773538127053,-120.97774151,0.00013226,2]
[408385053,1773538127623,-104.13174763,0.00013226,2]
[408385054,1773538127636,-74.08959823,0.00013226,2]
[408385055,1773538127645,-425.91040177,0.00013227,2]
[408385056,1773538127659,-500.0,0.00013227,2]
[408385057,1773538127672,-509.9079036,0.00013227,2]
[408385058,1773538130768,-10000.01,0.00013227,2]
[408385059,1773538130938,-10000.01,0.00013227,2]
[408385060,1773538131176,-10000.01,0.00013227,2]
[408385061,1773538131306,-10000.01,0.00013227,2]
[408385062,1773538131458,-10000.01,0.00013227,2]
[408385063,1773538147812,5000.01,7.945e-05,2]
[408385064,1773538147836,1816.789535,7.945e-05,2]
[408385065,1773538152521,211.07,0.00012,2]
[408385066,1773538163961,200.0,0.000126,2]
[408385067,1773538171466,1896.02231843,0.00013127,2]
[408385068,1773538182176,2692.91768157,0.00013127,2]
[408385069,1773538184953,-2063.8712668,0.00013127,2]
[408385070,1773538200741,338.0,0.00011582,2]
[408385071,1773538201819,338.0,0.00011928,2]
[408385072,1773538202528,338.28857165,0.00012525,2]
[408385073,1773538215896,577.19986332,0.000131,2]
[408385079,1773538231553,-872.2674664,0.00013127,2]
[408385080,1773538231563,-258.0,0.00013127,2]
[408385081,1773538231573,-1039.2589,0.00013127,2]
[408385082,1773538231583,-1200.0,0.00013226,2]
[408385083,1773538231593,-300.0,0.00013226,2]
[408385084,1773538231603,-300.0,0.00013226,2]
[408385085,1773538231613,-300.0,0.00013226,2]
[408385086,1773538231623,-300.0,0.00013226,2]
[408385087,1773538231633,-150.0,0.00013226,2]
[408385088,1773538231643,-300.0,0.00013227,2]
[408385089,1773538231652,-300.0,0.00013227,14]
[408385090,1773538231666,-32952.2722,0.00013227,2]
[408385091,1773538231675,-1061526.41913665,0.00013227,2]
[408385093,1773538231687,-44160.97337808,0.00013227,2]
[408385095,1773538231699,-30341.23669203,0.00013227,2]
[408385097,1773538231710,-58201.82659761,0.00013227,2]
[408385100,1773538231726,-256.43587715,0.00013227,2]
[408385102,1773538231738,-400.0,0.00013227,2]
[408385104,1773538231749,-10725.77457303,0.00013227,2]
[408385127,1773538237626,-46648.50201425,0.00013227,2]
[408385128,1773538237638,-346.22909034,0.00013227,2]
[408385129,1773538237650,-859037.38155668,0.00013227,2]
[408385130,1773538237770,-25.70432937,0.00013227,2]
[408385149,1773538240312,-10335.90051964,0.00013227,2]
[408385158,1773538242894,-455.84635096,0.00013227,2]
[408385159,1773538242906,-300.0,0.00013227,2]
[408385177,1773538245544,-733.83,0.00013227,2]
[408385178,1773538245856,-7892.035199,0.00013227,2]
[408385188,1773538261460,3005.59307089,0.000131,2]
[408385189,1773538261777,500.0,0.00012827,2]
[408385190,1773538267704,1494.41692911,0.00013127,2]
[408385191,1773538282635,5000.01,0.00013027,2]
[408385193,1773538384263,297.0,0.00012986,2]
[408385194,1773538401995,8071.55165069,0.00013017,2]
[408385195,1773538504770,161.13790646,0.00012926,2]
[408385196,1773538538801,-1200.0,0.00013025,2]
[408385197,1773538538826,-1200.0,0.00013025,2]
[408385198,1773538538851,-300.0,0.00013025,2]
[408385199,1773538555666,-300.0,0.00013026,2]
[408385200,1773538555693,-300.0,0.00013026,2]
[408385201,1773538555724,-150.0,0.00013026,2]
[408385202,1773538562249,300.0,0.00013025,2]
[408385203,1773538562723,150.0,0.00013025,2]
[408385204,1773538589739,319.436221,0.00012691,2]
[408385205,1773538594251,-312.64203694,0.00013026,2]
[408385206,1773538594281,-500.0,0.00013026,2]
[408385207,1773538594311,-500.0,0.00013026,2]
[408385208,1773538594342,-500.0,0.00013026,2]
[408385209,1773538594371,-500.0,0.00013026,2]
[408385210,1773538597250,-500.0,0.00013026,2]
[408385211,1773538597287,-500.0,0.00013026,2]
[408385212,1773538597322,-162.97669407,0.00013026,2]
[408385213,1773538597351,-500.0,0.00013026,2]
[408385214,1773538597380,-500.0,0.00013026,2]
[408385215,1773538597408,-174.05661186,0.00013026,2]
[408385216,1773538600359,-325.94338814,0.00013026,2]
[408385217,1773538600388,-500.0,0.00013026,2]
[408385218,1773538600417,-500.0,0.00013026,2]
[408385219,1773538600448,-500.0,0.00013026,2]
[408385220,1773538600478,-500.0,0.00013026,2]
[408385221,1773538603416,-500.0,0.00013026,2]
[408385222,1773538603446,-500.0,0.00013026,2]
[408385223,1773538603476,-500.0,0.00013026,2]
[408385224,1773538603506,-500.0,0.00013026,2]
[408385225,1773538603537,-500.0,0.00013026,2]
[408385226,1773538606359,-500.0,0.00013026,2]
[408385227,1773538606387,-500.0,0.00013026,2]
[408385228,1773538606416,-500.0,0.00013026,2]
[408385229,1773538606444,-500.0,0.00013026,2]
[408385230,1773538606472,-500.0,0.00013026,2]
[408385231,1773538609328,-500.0,0.00013026,2]
[408385232,1773538609357,-500.0,0.00013026,2]
[408385233,1773538609386,-500.0,0.00013026,2]
[408385234,1773538609415,-512.29143671,0.00013026,2]
[408385235,1773538609443,-336.73873181,0.00013026,2]
[408385236,1773538631623,200.0,0.00013019,2]
[408385237,1773538645564,-157.55595781,0.00013027,2]
[408385238,1773538647089,151.0,0.00013019,2]
[408385239,1773538647655,-4896.96562569,0.00013027,2]
[408385240,1773538647683,-13.07874862,0.00013027,2]
[408385241,1773538647768,151.0,0.00013019,2]
[408385242,1773538647908,-179.92125138,0.00013027,2]
[408385243,1773538647937,-2762.70709943,0.00013027,2]
[408385244,1773538647964,-306.51523009,0.00013027,2]
[408385245,1773538648308,151.0,0.00013019,2]
[408385246,1773538648911,151.0,0.00013019,2]
[408385247,1773538649519,151.0,0.00013019,2]
[408385248,1773538650124,151.0,0.00013019,2]
[408385249,1773538650733,151.0,0.00013019,2]
[408385250,1773538651323,151.0,0.00013019,2]
[408385251,1773538651910,151.0,0.00013019,2]
[408385252,1773538652952,235.2757227,0.00013019,2]
[408385253,1773538657595,-5000.01,0.00013027,2]
[408385254,1773538660604,-5000.01,0.00013027,2]
[408385255,1773538663692,-5000.01,0.00013027,2]
[408385256,1773538666634,-5000.01,0.00013027,2]
[408385257,1773538669743,-5000.01,0.00013027,2]
[408385258,1773538672683,-5000.01,0.00013027,2]
[408385259,1773538675756,-5000.01,0.00013027,2]
[408385260,1773538678701,-5000.01,0.00013027,2]
[408385261,1773538681198,300.0,0.00013026,2]
[408385262,1773538681838,-5000.01,0.00013027,2]
[408385263,1773538684495,160.0,0.00013027,2]
[408385264,1773538684727,-5000.01,0.00013027,2]
[408385265,1773538687837,-5000.01,0.00013027,2]
[408385266,1773538690756,-5000.01,0.00013027,2]
[408385267,1773538693864,-5000.01,0.00013027,2]
[408385268,1773538696833,-5000.01,0.00013027,2]
[408385269,1773538705248,336.34,0.00012,2]
[408385270,1773538712615,1413.1071155,0.00012967,2]
[408385271,1773538712637,1449.07498841,0.00012967,2]
[408385272,1773538718242,604.899317,0.00012962,2]
[408385273,1773538739397,161.847662,0.00012753,2]
[408385274,1773538742141,300.0,0.00013026,2]
[408385275,1773538742581,4979.24832594,0.00012967,2]
[408385276,1773538742610,150.0,0.00013026,2]
[408385277,1773538743212,2354.93970665,0.00012967,2]
[408385278,1773538743235,3626.24334102,0.00012967,2]
[408385279,1773538746676,160.0,0.00013027,2]
[408385280,1773538757812,-2532.88620374,0.00013027,2]
[408385281,1773538757846,-10000.01,0.00013027,2]
[408385282,1773538757915,-10000.01,0.00013027,2]
[408385283,1773538758025,-10000.01,0.00013027,2]
[408385284,1773538758346,-10000.01,0.00013027,2]
[408385285,1773538758360,-10000.01,0.00013027,2]
[408385286,1773538766081,-10000.01,0.00013027,2]
[408385287,1773538766195,-10000.01,0.00013027,2]
[408385288,1773538796000,305.352756,0.00012691,2]
[408385289,1773538801619,300.0,0.00013025,2]
[408385290,1773538805499,163.0,0.00013025,2]
[408385291,1773538806225,160.0,0.00013025,2]
[408385292,1773538813643,217.47477677,0.00013017,2]
[408385293,1773538838017,206.00578935,0.00012926,2]
[408385294,1773538844029,206.00578934,0.00012967,2]
[408385295,1773538861181,300.0,0.00013025,2]
[408385296,1773538865548,160.0,0.00013025,2]
[408385297,1773538905824,244.688604,0.00012585,2]
[408385298,1773538915220,-257.0,0.00013026,2]
[408385299,1773538915251,-1403.51,0.00013026,2]
[408385300,1773538915283,-3091.84,0.00013026,2]
[408385301,1773538915312,-179.259,0.00013026,2]
[408385302,1773538921334,136.792,0.00013025,2]
[408385303,1773538921358,163.208,0.00013025,2]
[408385304,1773538921988,300.0,0.00013025,2]
[408385305,1773538923483,150.0,0.00013025,2]
[408385306,1773538927078,161.0,0.00013026,2]
[408385307,1773538930215,-500.0,0.00013026,2]
[408385308,1773538933104,2093.95833195,0.00013026,2]
[408385309,1773538955107,10000.01,0.000129,2]
[408385310,1773538955131,10000.01,0.000129,2]
[408385311,1773538955156,10000.01,0.000129,2]
[408385312,1773538955183,10000.01,0.000129,2]
[408385313,1773538955208,8986.96,0.000129,2]
[408385314,1773538956225,1013.05,0.00012927,2]
[408385315,1773538956246,4347.0921,0.00012927,2]
[408385316,1773538957533,500.0,0.00013026,2]
[408385317,1773538972801,223.88393344,0.00012961,2]
[408385318,1773538988295,3959.21,6.326e-05,2]
[408385319,1773538988500,3959.21,6.659e-05,2]
[408385320,1773538988697,2081.59,6.991e-05,2]
[408385321,1773538988719,1877.62,6.991e-05,2]
[408385322,1773538988909,3959.21,7.324e-05,2]
[408385323,1773538989106,3959.21,7.657e-05,2]
[408385324,1773538989312,203.97,7.99e-05,2]
[408385325,1773538989335,3755.24,7.99e-05,2]
[408385326,1773538989525,3959.21,8.323e-05,2]
[408385327,1773538989738,2285.56,8.656e-05,2]
[408385328,1773538989760,1673.65,8.656e-05,2]
[408385329,1773538990148,3959.21,8.989e-05,2]
[408385330,1773538990174,3959.21,9.322e-05,2]
[408385331,1773538990332,407.94,9.655e-05,2]
[408385332,1773538990357,3551.27,9.655e-05,2]
[408385333,1773538990524,3959.21,9.988e-05,2]
[408385334,1773538990735,2489.53,0.00010321,2]
[408385335,1773538990757,1469.68,0.00010321,2]
[408385336,1773538990960,3959.21,0.00010654,2]
[408385337,1773538991156,3959.21,0.00010987,2]
[408385338,1773538991357,611.91,0.0001132,2]
[408385339,1773538991380,3347.3,0.0001132,2]
[408385340,1773538991599,3959.21,0.00011652,2]
[408385341,1773538991784,2693.5,0.00011985,2]
[408385342,1773538991807,1265.71,0.00011985,2]
[408385343,1773539045804,161.0,0.00012,3]
[408385344,1773539048461,10000.01,7.945e-05,2]
[408385345,1773539048484,5810.67248,7.945e-05,2]
[408385346,1773539104725,161.0,0.00012141,2]
[408385347,1773539107973,163.0,0.00012141,2]
[408385348,1773539165038,161.0,0.00012,3]
[408385349,1773539177344,299.13995524,0.00012013,2]
[408385350,1773539212438,7959.34137,0.00012052,2]
[408385351,1773539225488,161.0,0.00012113,2]
[408385352,1773539235192,5533.0,0.000121,3]
[408385353,1773539269158,1500.0,0.00011918,2]
[408385354,1773539287605,161.0,0.00012113,2]
[408385355,1773539346603,161.0,0.00012113,2]
[408385356,1773539367016,553.57311163,0.00012098,2]
[408385357,1773539368152,-5052.45520807,0.00012113,2]
[408385358,1773539368173,-500.0,0.00012136,3]
[408385359,1773539368192,-2411.94,0.00012151,2]
[408385360,1773539368218,-1200.0,0.00012167,2]
[408385361,1773539368241,-300.0,0.00012167,2]
[408385362,1773539368261,-815.99709557,0.00012167,2]
[408385363,1773539368283,-2213.59642197,0.00012168,2]
[408385364,1773539368303,-219.36740542,0.00012168,2]
[408385365,1773539368324,-4295.17703158,0.000122,5]
[408385366,1773539373806,-1237.82296842,0.000122,5]
[408385367,1773539390033,-300.0,0.00012254,2]
[408385368,1773539390060,-300.0,0.00012254,2]
[408385369,1773539405637,1059.51,0.00012121,2]
[408385370,1773539406312,-193.0,0.00012287,2]
[408385371,1773539407161,161.0,0.00012254,2]
[408385372,1773539407971,163.0,0.00012254,2]
[408385373,1773539421616,-251.0,0.00012287,2]
[408385377,1773539431561,-600.0,0.00012303,2]
[408385380,1773539431972,-1042.59420041,0.00012303,2]
[408385381,1773539431982,-3959.21,0.00012318,2]
[408385382,1773539431991,-10000.0,0.000124,2]
[408385383,1773539432000,-299.13995522,0.00012447,2]
[408385384,1773539432010,-208.23921566,0.00012454,2]
[408385385,1773539432019,-600.0,0.000126,4]
[408385386,1773539432028,-300.0,0.0001265,2]
[408385387,1773539432039,-1200.0,0.0001265,2]
[408385388,1773539432048,-1852.42,0.00012651,2]
[408385389,1773539432058,-3959.21,0.00012651,2]
[408385390,1773539432069,-500.0,0.00012673,2]
[408385391,1773539432079,-456.99839961,0.00012673,2]
[408385392,1773539432090,-500.0,0.00012673,2]
[408385393,1773539432099,-500.75670339,0.00012673,2]
[408385394,1773539432109,-501.11819588,0.00012673,2]
[408385395,1773539432122,-500.0,0.00012673,2]
[408385396,1773539432133,-500.0,0.00012673,2]
[408385397,1773539432143,-500.0,0.00012673,2]
[408385398,1773539432152,-500.0,0.00012673,2]
[408385399,1773539432161,-500.0,0.00012673,2]
[408385400,1773539432170,-500.0,0.00012673,2]
[408385401,1773539432180,-500.0,0.00012673,2]
[408385402,1773539432190,-500.0,0.00012673,2]
[408385403,1773539432199,-155.27138696,0.0001269,2]
[408385404,1773539432208,-1200.0,0.000127,4]
[408385405,1773539432217,-35195.47916052,0.000127,2]
[408385406,1773539432229,-3883.5842815,0.000127,2]
[408385407,1773539432239,-97876.99886747,0.000127,2]
[408385408,1773539432250,-20518.39142194,0.000127,2]
[408385409,1773539432260,-336.76248742,0.000127,2]
[408385411,1773539437762,-54351.49798575,0.000127,2]
[408385412,1773539437774,-2203.4487592,0.000127,2]
[408385413,1773539437785,-1922.95081706,0.000127,2]
[408385414,1773539437800,-3685.56,0.000127,2]
[408385422,1773539439995,-2280025.32621914,0.000127,2]
[408385423,1773539440007,-167.91,0.00012771,2]
[408385424,1773539440018,-167.91,0.00012771,2]
[408385425,1773539440030,-1800.0,0.000128,4]
[408385426,1773539440042,-299.13995522,0.00012881,2]
[408385427,1773539440053,-748.31852425,0.000129,2]
[408385428,1773539440065,-2400.0,0.000129,4]
[408385429,1773539440078,-6758.0436,0.00012927,2]
[408385430,1773539440089,-190.63,0.00012939,2]
[408385431,1773539440103,-3973.1386067,0.0001294,2]
[408385432,1773539440114,-4913.11985576,0.0001294,2]
[408385433,1773539440126,-1622.0,0.00012963,2]
[408385434,1773539440139,-150.0,0.00012972,2]
[408385435,1773539440151,-6336.21339538,0.00012973,2]
[408385436,1773539440163,-528.60681779,0.00012981,2]
[408385437,1773539440174,-1264.0,0.00012989,2]
[408385438,1773539440185,-1224.0,0.00013015,2]
[408385439,1773539440196,-200.0,0.00013019,2]
[408385440,1773539440208,-500.0,0.00013019,2]
[408385441,1773539440220,-500.0,0.00013019,2]
[408385442,1773539440230,-259.84853228,0.00013019,2]
[408385443,1773539440240,-151.0,0.00013019,2]
[408385444,1773539440250,-151.0,0.00013019,2]
[408385445,1773539440260,-151.0,0.00013019,2]
[408385446,1773539440272,-151.0,0.00013019,2]
[408385447,1773539440285,-151.0,0.00013019,2]
[408385448,1773539440298,-151.0,0.00013019,2]
[408385449,1773539440308,-151.0,0.00013019,2]
[408385450,1773539440318,-151.0,0.00013019,2]
[408385451,1773539440328,-151.0,0.00013019,2]
[408385452,1773539440338,-151.0,0.00013019,2]
[408385453,1773539440348,-151.0,0.00013019,2]
[408385454,1773539440359,-151.0,0.00013019,2]
[408385455,1773539440373,-151.0,0.00013019,2]
[408385456,1773539440387,-151.0,0.00013019,2]
[408385457,1773539440400,-151.0,0.00013019,2]
[408385458,1773539440413,-151.0,0.00013019,2]
[408385459,1773539440425,-151.0,0.00013019,2]
[408385460,1773539440436,-151.0,0.00013019,2]
[408385461,1773539440447,-151.0,0.00013019,2]
[408385462,1773539440457,-151.0,0.00013019,2]
[408385463,1773539440467,-151.0,0.00013019,2]
[408385464,1773539440478,-151.0,0.00013019,2]
[408385465,1773539440490,-151.0,0.00013019,2]
[408385466,1773539440501,-151.0,0.00013019,2]
[408385467,1773539440514,-151.0,0.00013019,2]
[408385468,1773539440525,-151.0,0.00013019,2]
[408385469,1773539440537,-151.0,0.00013019,2]
[408385470,1773539440548,-151.0,0.00013019,2]
[408385471,1773539440559,-151.0,0.00013019,2]
[408385472,1773539440571,-151.0,0.00013019,2]
[408385473,1773539440582,-151.0,0.00013019,2]
[408385474,1773539440593,-500.0,0.00013026,2]
[408385475,1773539440604,-667.79224464,0.00013026,2]
[408385476,1773539440616,-667.79224464,0.00013026,2]
[408385477,1773539440626,-667.79224464,0.00013026,2]
[408385478,1773539440638,-667.79224464,0.00013026,2]
[408385479,1773539440649,-667.79224464,0.00013026,2]
[408385480,1773539440660,-667.79224464,0.00013026,2]
[408385481,1773539440671,-667.79224464,0.00013026,2]
[408385482,1773539440681,-667.79224464,0.00013026,2]
[408385483,1773539440692,-667.79224464,0.00013026,2]
[408385484,1773539440704,-667.79224464,0.00013026,2]
[408385485,1773539440716,-667.79224464,0.00013026,2]
[408385486,1773539440728,-667.79224464,0.00013026,2]
[408385487,1773539440739,-667.79224464,0.00013026,2]
[408385488,1773539440750,-667.79224464,0.00013026,2]
[408385489,1773539440762,-667.79224464,0.00013026,2]
[408385490,1773539440772,-667.79224464,0.00013026,2]
[408385491,1773539440783,-667.79224464,0.00013026,2]
[408385492,1773539440794,-667.79224464,0.00013026,2]
[408385493,1773539440805,-667.79224464,0.00013026,2]
[408385494,1773539440815,-667.79224464,0.00013026,2]
[408385495,1773539440826,-667.79224464,0.00013026,2]
[408385496,1773539440841,-667.79224464,0.00013026,2]
[408385497,1773539440851,-667.79224464,0.00013026,2]
[408385498,1773539440863,-667.79224464,0.00013026,2]
[408385499,1773539440875,-667.79224464,0.00013026,2]
[408385500,1773539440886,-667.79224464,0.00013026,2]
[408385501,1773539440897,-667.79224464,0.00013026,2]
[408385502,1773539440908,-667.79224464,0.00013026,2]
[408385503,1773539440920,-667.79224464,0.00013026,2]
[408385504,1773539440930,-667.79224464,0.00013026,2]
[408385505,1773539440941,-667.79224464,0.00013026,2]
[408385506,1773539440951,-667.79224464,0.00013026,2]
[408385507,1773539440961,-667.79224464,0.00013026,2]
[408385508,1773539440971,-667.79224464,0.00013026,2]
[408385509,1773539440982,-667.79224464,0.00013026,2]
[408385510,1773539440993,-667.79224464,0.00013026,2]
[408385511,1773539441003,-667.79224464,0.00013026,2]
[408385512,1773539441014,-667.79224464,0.00013026,2]
[408385513,1773539441025,-667.79224464,0.00013026,2]
[408385514,1773539441035,-667.79224464,0.00013026,2]
[408385515,1773539441046,-667.79224464,0.00013026,2]
[408385516,1773539441056,-667.79224464,0.00013026,2]
[408385517,1773539441067,-667.79224464,0.00013026,2]
[408385518,1773539441078,-667.79224464,0.00013026,2]
[408385519,1773539441088,-591.47313097,0.00013026,2]
[408385520,1773539441099,-591.47313097,0.00013026,2]
[408385521,1773539441109,-591.47313097,0.00013026,2]
[408385522,1773539441119,-591.47313097,0.00013026,2]
[408385523,1773539441130,-591.47313097,0.00013026,2]
[408385524,1773539441140,-591.47313097,0.00013026,2]
[408385525,1773539441150,-591.47313097,0.00013026,2]
[408385526,1773539441161,-591.47313097,0.00013026,2]
[408385527,1773539441171,-591.47313097,0.00013026,2]
[408385528,1773539441182,-591.47313097,0.00013026,2]
[408385529,1773539441192,-591.47313097,0.00013026,2]
[408385530,1773539441203,-591.47313097,0.00013026,2]
[408385531,1773539441213,-591.47313097,0.00013026,2]
[408385532,1773539441225,-591.47313097,0.00013026,2]
[408385533,1773539441235,-591.47313097,0.00013026,2]
[408385534,1773539441246,-591.47313097,0.00013026,2]
[408385535,1773539441256,-591.47313097,0.00013026,2]
[408385536,1773539441267,-591.47313097,0.00013026,2]
[408385537,1773539441278,-591.47313097,0.00013026,2]
[408385538,1773539441289,-591.47313097,0.00013026,2]
[408385539,1773539441299,-591.47313097,0.00013026,2]
[408385540,1773539441311,-591.47313097,0.00013026,2]
[408385541,1773539441322,-591.47313097,0.00013026,2]
[408385542,1773539441333,-591.47313097,0.00013026,2]
[408385543,1773539441344,-591.47313097,0.00013026,2]
[408385544,1773539441355,-591.47313097,0.00013026,2]
[408385545,1773539441366,-591.47313097,0.00013026,2]
[408385546,1773539441378,-591.47313097,0.00013026,2]
[408385547,1773539441389,-591.47313097,0.00013026,2]
[408385548,1773539441401,-591.47313097,0.00013026,2]
[408385549,1773539441414,-591.47313097,0.00013026,2]
[408385550,1773539441423,-591.47313097,0.00013026,2]
[408385551,1773539441634,-591.47313097,0.00013026,2]
[408385552,1773539441653,-591.47313097,0.00013026,2]
[408385553,1773539441666,-591.47313097,0.00013026,2]
[408385554,1773539441675,-339.81874425,0.00013026,2]
[408385555,1773539441686,-1430.0,0.0001304,2]
[408385556,1773539441703,-1063.0,0.00013066,2]
[408385557,1773539441713,-500.0,0.00013073,2]
[408385558,1773539441724,-500.56434251,0.00013073,2]
[408385559,1773539441733,-500.0,0.00013073,2]
[408385560,1773539441743,-500.0,0.00013073,2]
[408385561,1773539441753,-500.0,0.00013073,2]
[408385562,1773539441762,-500.0,0.00013073,2]
[408385563,1773539441772,-167.26510241,0.00013073,2]
[408385564,1773539441781,-164.87924349,0.00013073,2]
[408385565,1773539441790,-500.0,0.00013073,2]
[408385566,1773539441800,-167.29671694,0.00013073,2]
[408385567,1773539441809,-31462.99657089,0.00013127,2]
[408385568,1773539441820,-7114.3748,0.00013127,2]
[408385569,1773539441836,-500.0,0.00013127,2]
[408385570,1773539441846,-1000.0,0.00013127,2]
[408385571,1773539441855,-4000.0,0.00013144,2]
[408385572,1773539441865,-574.15668349,0.00013173,2]
[408385573,1773539441875,-2361.8,0.00013194,2]
[408385574,1773539441884,-1000.0,0.00013221,2]
[408385575,1773539441893,-429.01401913,0.00013221,2]
[408385576,1773539441902,-502.19640803,0.00013221,2]
[408385577,1773539441913,-1000.0,0.00013221,2]
[408385578,1773539441933,-1000.0,0.00013221,2]
[408385579,1773539441943,-332.58199131,0.00013221,2]
[408385580,1773539441953,-1000.0,0.00013221,2]
[408385581,1773539441963,-1000.0,0.00013221,2]
[408385582,1773539441974,-446.46468827,0.00013221,2]
[408385583,1773539441984,-1001.73372857,0.00013221,2]
[408385584,1773539441994,-1002.39808318,0.00013225,2]
[408385585,1773539442003,-1000.0,0.00013225,2]
[408385586,1773539442013,-1318.31522047,0.00013227,2]
[408385587,1773539442023,-200.0,0.00013227,2]
[408385588,1773539442032,-200.0,0.00013227,2]
[408385589,1773539442042,-208.13,0.00013247,2]
[408385590,1773539442052,-690.05372759,0.00013252,2]
[408385591,1773539442063,-11345.36,0.00013264,2]
[408385592,1773539442072,-7609.61,0.00013282,2]
[408385593,1773539442083,-167.91,0.00013293,2]
[408385594,1773539442093,-167.91,0.00013293,2]
[408385595,1773539442104,-5000.0,0.00013299,2]
[408385596,1773539442114,-194.57847078,0.00013299,2]
[408385597,1773539442123,-1403.51,0.000133,2]
[408385598,1773539442133,-505.3214733,0.000133,2]
[408385599,1773539442142,-253.93112953,0.00013324,2]
[408385600,1773539442151,-250.0,0.00013324,2]
[408385601,1773539442160,-150.0,0.00013345,2]
[408385602,1773539442171,-964.0,0.00013354,2]
[408385603,1773539442180,-200.0,0.00013359,2]
[408385604,1773539442190,-200.0,0.00013359,2]
[408385605,1773539442201,-250.0,0.00013366,2]
[408385606,1773539442210,-555.0,0.00013424,2]
[408385607,1773539442222,-3240.0,0.00013425,2]
[408385608,1773539442234,-420.0,0.00013449,2]
[408385609,1773539442244,-4000.0,0.00013472,2]
[408385610,1773539442254,-193.0,0.00013481,2]
[408385611,1773539442266,-200.0,0.00013493,2]
[408385612,1773539442277,-5000.0,0.00013515,2]
[408385613,1773539442289,-276.0,0.00013524,2]
[408385614,1773539442299,-912.29874954,0.00013526,2]
[408385615,1773539442309,-2047.84126274,0.00013526,2]
[408385616,1773539442318,-2473.02996174,0.00013526,2]
[408385617,1773539442328,-2228.33905155,0.00013526,2]
[408385618,1773539442338,-2260.4356122,0.00013526,2]
[408385619,1773539442349,-462.0,0.00013551,2]
[408385620,1773539442360,-200.0,0.00013567,2]
[408385621,1773539442370,-1403.51,0.00013574,2]
[408385622,1773539442381,-363.12295565,0.00013578,2]
[408385623,1773539442392,-415.0,0.00013588,2]
[408385624,1773539442403,-490.84375944,0.00013598,2]
[408385625,1773539442415,-400.0,0.00013615,2]
[408385626,1773539442426,-1000.0,0.00013621,2]
[408385627,1773539442436,-1000.0,0.00013621,2]
[408385628,1773539442448,-1000.0,0.00013621,2]
[408385629,1773539442457,-1000.0,0.00013621,2]
[408385630,1773539442467,-1000.0,0.00013621,2]
[408385631,1773539442477,-367.69641233,0.00013621,2]
[408385632,1773539442487,-200.0,0.00013628,2]
[408385633,1773539442496,-555.0,0.00013635,2]
[408385634,1773539442506,-555.0,0.00013635,2]